[Event "*** Titled Tuesday Blitz"]
[Site "Chess.com"]
[Date "2018.01.02"]
[Round "5"]
[White "Babbelbox"]
[Black "Dr-Bassem"]
[Result "0-1"]
[WhiteElo "2439"]
[BlackElo "2643"]
[TimeControl "180+2"]
[EndTime "14:05:34 PST"]
[Termination "Dr-Bassem won by resignation"]

1. d4 {[%clk 0:02:29.4]} 1... Nf6 {[%clk 0:03:00.4]} 2. c4 {[%clk 0:02:31.3]}
2... g6 {[%clk 0:03:01.2]} 3. Nc3 {[%clk 0:02:32.2]} 3... Bg7 {[%clk 0:03:02.8]}
4. e4 {[%clk 0:02:33.2]} 4... d6 {[%clk 0:03:04.4]} 5. h3 {[%clk 0:02:33.7]}
5... O-O {[%clk 0:03:05.2]} 6. Be3 {[%clk 0:02:35.3]} 6... e5 {[%clk 0:03:04.5]}
7. d5 {[%clk 0:02:36.8]} 7... a5 {[%clk 0:03:00.7]} 8. g4 {[%clk 0:02:37.9]}
8... Na6 {[%clk 0:03:01.3]} 9. Be2 {[%clk 0:02:38.2]} 9... Nc5 {[%clk
0:03:00.2]} 10. Qc2 {[%clk 0:02:39.2]} 10... c6 {[%clk 0:02:56.5]} 11. O-O-O
{[%clk 0:02:34.9]} 11... cxd5 {[%clk 0:02:57.7]} 12. cxd5 {[%clk 0:02:28.7]}
12... Bd7 {[%clk 0:02:55.7]} 13. f3 {[%clk 0:01:55.9]} 13... a4 {[%clk
0:02:51.5]} 14. Kb1 {[%clk 0:01:52.5]} 14... Qa5 {[%clk 0:02:51.7]} 15. Rc1
{[%clk 0:01:34.7]} 15... Rfc8 {[%clk 0:02:51.5]} 16. Bd2 {[%clk 0:01:26.8]}
16... b5 {[%clk 0:02:17.5]} 17. Nxb5 {[%clk 0:01:25.2]} 17... Qb6 {[%clk
0:02:18.2]} 18. Nc3 {[%clk 0:01:25.3]} 18... Nb3 {[%clk 0:02:09.9]} 19. Rd1
{[%clk 0:01:21.1]} 19... Nd4 {[%clk 0:01:55.6]} 20. Qd3 {[%clk 0:01:18.4]} 20...
a3 {[%clk 0:01:51.2]} 21. Bc1 {[%clk 0:01:01.1]} 21... Bh6 {[%clk 0:01:44.3]}
22. Rd2 {[%clk 0:00:38.3]} 22... Bxd2 {[%clk 0:01:28.2]} 23. Qxd2 {[%clk
0:00:40.2]} 23... axb2 {[%clk 0:01:25.3]} 24. Bxb2 {[%clk 0:00:38.3]} 24... Ba4
{[%clk 0:01:23.8]} 25. h4 {[%clk 0:00:29.5]} 25... Bc2+ {[%clk 0:01:22.8]} 26.
Kc1 {[%clk 0:00:28.2]} 26... Rab8 {[%clk 0:01:21.6]} 27. Ba1 {[%clk 0:00:19]}
27... Qb1+ {[%clk 0:01:20.9]} 0-1

[Event "*** Titled Tuesday Blitz"]
[Site "Chess.com"]
[Date "2018.01.02"]
[Round "5"]
[White "GM_dmitrij"]
[Black "johnathan113"]
[Result "1-0"]
[WhiteElo "2613"]
[BlackElo "2408"]
[TimeControl "180+2"]
[EndTime "14:05:39 PST"]
[Termination "GM_dmitrij won on time"]

1. e4 {[%clk 0:03:01.9]} 1... g6 {[%clk 0:03:01.9]} 2. d4 {[%clk 0:03:02.5]}
2... Nf6 {[%clk 0:03:03.8]} 3. e5 {[%clk 0:03:02.2]} 3... Nh5 {[%clk 0:03:04.8]}
4. Nc3 {[%clk 0:03:00.3]} 4... d6 {[%clk 0:03:06.1]} 5. Be2 {[%clk 0:02:57.4]}
5... dxe5 {[%clk 0:03:00.8]} 6. dxe5 {[%clk 0:02:52.7]} 6... Qxd1+ {[%clk
0:03:02.7]} 7. Bxd1 {[%clk 0:02:53.4]} 7... Nc6 {[%clk 0:03:04.6]} 8. Bxh5
{[%clk 0:02:50.1]} 8... gxh5 {[%clk 0:03:05.2]} 9. Bf4 {[%clk 0:02:52]} 9... Rg8
{[%clk 0:03:04.3]} 10. Nd5 {[%clk 0:02:41.9]} 10... Kd8 {[%clk 0:02:58]} 11.
O-O-O {[%clk 0:02:37.9]} 11... Bg4 {[%clk 0:02:58.8]} 12. f3 {[%clk 0:02:36.6]}
12... Bd7 {[%clk 0:02:59.1]} 13. e6 {[%clk 0:02:33.9]} 13... fxe6 {[%clk
0:02:59.4]} 14. Nxc7 {[%clk 0:02:33]} 14... e5 {[%clk 0:02:40]} 15. Ne6+ {[%clk
0:02:18.8]} 15... Kc8 {[%clk 0:02:40.8]} 16. Nxf8 {[%clk 0:02:16.5]} 16... Rxf8
{[%clk 0:02:16.1]} 17. Be3 {[%clk 0:02:16.7]} 17... Rg8 {[%clk 0:02:14]} 18. g3
{[%clk 0:02:16.9]} 18... Bf5 {[%clk 0:02:12]} 19. Ne2 {[%clk 0:02:15.4]} 19...
Kc7 {[%clk 0:02:12.4]} 20. Nc3 {[%clk 0:02:16.1]} 20... e6 {[%clk 0:02:13.1]}
21. Nb5+ {[%clk 0:02:14.6]} 21... Kb8 {[%clk 0:02:11.9]} 22. Rd7 {[%clk
0:02:02.5]} 22... Rc8 {[%clk 0:01:53.6]} 23. Bc5 {[%clk 0:01:58.6]} 23... Rg8
{[%clk 0:01:25]} 24. Rhd1 {[%clk 0:01:42.6]} 24... e4 {[%clk 0:01:19]} 25. Bd6+
{[%clk 0:01:29.8]} 1-0

[Event "*** Titled Tuesday Blitz"]
[Site "Chess.com"]
[Date "2018.01.02"]
[Round "5"]
[White "aa175"]
[Black "inegrepus"]
[Result "0-1"]
[WhiteElo "1900"]
[BlackElo "2130"]
[TimeControl "180+2"]
[EndTime "14:06:20 PST"]
[Termination "inegrepus won on time"]

1. e4 {[%clk 0:03:01.9]} 1... c5 {[%clk 0:03:00.4]} 2. Nf3 {[%clk 0:03:01.5]}
2... Nc6 {[%clk 0:03:01.4]} 3. d4 {[%clk 0:03:00.5]} 3... cxd4 {[%clk
0:03:03.3]} 4. Nxd4 {[%clk 0:02:58.3]} 4... e5 {[%clk 0:03:04.6]} 5. Nb5 {[%clk
0:02:56.2]} 5... d6 {[%clk 0:03:06]} 6. N1c3 {[%clk 0:02:53.3]} 6... a6 {[%clk
0:03:06.8]} 7. Na3 {[%clk 0:02:53.7]} 7... Be7 {[%clk 0:03:08.5]} 8. Be3 {[%clk
0:02:53.7]} 8... Nf6 {[%clk 0:03:05.2]} 9. Nc4 {[%clk 0:02:50.4]} 9... Ng4
{[%clk 0:03:05.8]} 10. Bb6 {[%clk 0:02:43.2]} 10... Qd7 {[%clk 0:03:06.8]} 11.
Nd5 {[%clk 0:02:43.9]} 11... O-O {[%clk 0:03:02.3]} 12. f3 {[%clk 0:02:12.3]}
12... Nf6 {[%clk 0:03:00.9]} 13. Nxe7+ {[%clk 0:02:12.5]} 13... Qxe7 {[%clk
0:02:38.2]} 14. Qxd6 {[%clk 0:02:09.4]} 14... Be6 {[%clk 0:02:39]} 15. Qxe7
{[%clk 0:02:08.5]} 15... Nxe7 {[%clk 0:02:40]} 16. Bc5 {[%clk 0:02:09.2]} 16...
Rfe8 {[%clk 0:02:40.4]} 17. Nxe5 {[%clk 0:01:57.4]} 17... Rac8 {[%clk
0:02:35.4]} 18. Bxe7 {[%clk 0:01:36.6]} 18... Rxe7 {[%clk 0:02:37.3]} 19. Bd3
{[%clk 0:01:38.2]} 19... Bxa2 {[%clk 0:02:30.6]} 20. Rxa2 {[%clk 0:01:28.8]}
20... Rxe5 {[%clk 0:02:31.6]} 21. Kf2 {[%clk 0:01:24.8]} 21... Nd7 {[%clk
0:02:27.4]} 22. Rd1 {[%clk 0:01:23.9]} 22... Nc5 {[%clk 0:02:28.2]} 23. Bc4
{[%clk 0:01:16.6]} 23... Kf8 {[%clk 0:02:17.6]} 24. Rd5 {[%clk 0:01:02.1]} 24...
Re7 {[%clk 0:02:11.7]} 25. Rd4 {[%clk 0:00:46.4]} 25... Ne6 {[%clk 0:02:05]} 26.
Bxe6 {[%clk 0:00:37]} 26... Rxc2+ {[%clk 0:02:05.8]} 27. Kg1 {[%clk 0:00:35.2]}
27... Rxe6 {[%clk 0:02:01.5]} 28. Rd8+ {[%clk 0:00:20.2]} 28... Ke7 {[%clk
0:02:02]} 29. Rh8 {[%clk 0:00:21.6]} 29... Rd6 {[%clk 0:01:59.2]} 30. Ra1 {[%clk
0:00:20.9]} 30... Rdd2 {[%clk 0:01:56.9]} 31. Rxh7 {[%clk 0:00:20.5]} 31...
Rxg2+ {[%clk 0:01:57.7]} 32. Kh1 {[%clk 0:00:21.7]} 32... Rxb2 {[%clk
0:01:58.1]} 33. Rh8 {[%clk 0:00:21.1]} 33... Rgf2 {[%clk 0:01:53.9]} 34. Rh3
{[%clk 0:00:17.7]} 34... a5 {[%clk 0:01:53.1]} 35. Kg1 {[%clk 0:00:16]} 35...
Rfc2 {[%clk 0:01:54]} 36. Rh7 {[%clk 0:00:10.5]} 36... a4 {[%clk 0:01:55]} 37.
Rxg7 {[%clk 0:00:08.7]} 37... a3 {[%clk 0:01:56.2]} 38. Rg2 {[%clk 0:00:08.4]}
38... Rxg2+ {[%clk 0:01:56.4]} 39. Kh1 {[%clk 0:00:09.9]} 39... Rxh2+ {[%clk
0:01:57.2]} 40. Kg1 {[%clk 0:00:11.4]} 40... Rhc2 {[%clk 0:01:58]} 41. Kf1
{[%clk 0:00:13.3]} 41... a2 {[%clk 0:01:58.4]} 42. Ke1 {[%clk 0:00:12.2]} 42...
Rb1+ {[%clk 0:01:59.2]} 0-1

[Event "*** Titled Tuesday Blitz"]
[Site "Chess.com"]
[Date "2018.01.02"]
[Round "5"]
[White "RoelandPruijssers"]
[Black "SergeiAza"]
[Result "1-0"]
[WhiteElo "2513"]
[BlackElo "2655"]
[TimeControl "180+2"]
[EndTime "14:06:25 PST"]
[Termination "RoelandPruijssers won by resignation"]

1. e4 {[%clk 0:03:01.9]} 1... c5 {[%clk 0:03:00.8]} 2. Nf3 {[%clk 0:03:02.1]}
2... Nc6 {[%clk 0:03:02.4]} 3. Nc3 {[%clk 0:03:00.3]} 3... e5 {[%clk 0:03:01]}
4. Bc4 {[%clk 0:03:00.4]} 4... d6 {[%clk 0:03:01.2]} 5. O-O {[%clk 0:03:00.5]}
5... Be7 {[%clk 0:03:02.6]} 6. d3 {[%clk 0:03:01]} 6... Be6 {[%clk 0:02:57.2]}
7. Re1 {[%clk 0:02:58.3]} 7... Nf6 {[%clk 0:02:55.9]} 8. Nd5 {[%clk 0:02:51.8]}
8... O-O {[%clk 0:02:52.2]} 9. c3 {[%clk 0:02:47.3]} 9... Nd7 {[%clk 0:02:51.5]}
10. Rb1 {[%clk 0:02:41]} 10... h6 {[%clk 0:02:44.3]} 11. b4 {[%clk 0:02:39.3]}
11... cxb4 {[%clk 0:02:41.1]} 12. cxb4 {[%clk 0:02:41.2]} 12... Bg4 {[%clk
0:02:39.8]} 13. h3 {[%clk 0:02:31.4]} 13... Bxf3 {[%clk 0:02:34.9]} 14. Qxf3
{[%clk 0:02:33.3]} 14... Bg5 {[%clk 0:02:33.1]} 15. Be3 {[%clk 0:02:31.7]} 15...
Nf6 {[%clk 0:02:14.8]} 16. Nxf6+ {[%clk 0:02:18.2]} 16... Bxf6 {[%clk 0:02:09]}
17. Bd5 {[%clk 0:02:18.4]} 17... Qe7 {[%clk 0:02:04.7]} 18. b5 {[%clk
0:02:13.3]} 18... Nd8 {[%clk 0:02:01.7]} 19. a4 {[%clk 0:02:09.3]} 19... Ne6
{[%clk 0:01:59.1]} 20. a5 {[%clk 0:02:07.9]} 20... Bg5 {[%clk 0:01:18.8]} 21. a6
{[%clk 0:02:08.3]} 21... Bxe3 {[%clk 0:01:19.1]} 22. fxe3 {[%clk 0:02:07.8]}
22... Rab8 {[%clk 0:01:11.9]} 23. axb7 {[%clk 0:02:08.5]} 23... Nc5 {[%clk
0:01:06.1]} 24. b6 {[%clk 0:01:22.5]} 24... a5 {[%clk 0:01:06]} 25. d4 {[%clk
0:01:17.5]} 25... Nxb7 {[%clk 0:01:05.4]} 26. Rec1 {[%clk 0:01:16.3]} 26... Rfc8
{[%clk 0:00:32.7]} 27. Qf5 {[%clk 0:01:16.9]} 27... Rxc1+ {[%clk 0:00:29.3]} 28.
Rxc1 {[%clk 0:01:18.8]} 28... Nd8 {[%clk 0:00:29.4]} 29. Rc7 {[%clk 0:01:16.9]}
29... Qe8 {[%clk 0:00:20.2]} 30. b7 {[%clk 0:01:10.8]} 30... a4 {[%clk
0:00:07.7]} 31. Rc8 {[%clk 0:01:09.5]} 31... g6 {[%clk 0:00:04.8]} 32. Qxg6+
{[%clk 0:01:09.8]} 32... Kf8 {[%clk 0:00:03.3]} 33. Qxh6+ {[%clk 0:01:09.1]}
33... Ke7 {[%clk 0:00:04.8]} 1-0

[Event "*** Titled Tuesday Blitz"]
[Site "Chess.com"]
[Date "2018.01.02"]
[Round "5"]
[White "Tonychess32"]
[Black "Grebeniuk-S"]
[Result "1-0"]
[WhiteElo "2417"]
[BlackElo "2397"]
[TimeControl "180+2"]
[EndTime "14:06:28 PST"]
[Termination "Tonychess32 won by resignation"]

1. e4 {[%clk 0:01:34.4]} 1... c5 {[%clk 0:02:55.9]} 2. Nf3 {[%clk 0:01:34.6]}
2... d6 {[%clk 0:02:56.7]} 3. c3 {[%clk 0:01:35.6]} 3... Nf6 {[%clk 0:02:56.2]}
4. Be2 {[%clk 0:01:37.1]} 4... g6 {[%clk 0:02:47.1]} 5. O-O {[%clk 0:01:37.7]}
5... Bg7 {[%clk 0:02:48.1]} 6. d3 {[%clk 0:01:38]} 6... O-O {[%clk 0:02:48.8]}
7. Qc2 {[%clk 0:01:39.6]} 7... Nc6 {[%clk 0:02:41.3]} 8. Re1 {[%clk 0:01:40.7]}
8... b5 {[%clk 0:02:39.7]} 9. a4 {[%clk 0:01:41.1]} 9... b4 {[%clk 0:02:40.2]}
10. Nbd2 {[%clk 0:01:38.5]} 10... Rb8 {[%clk 0:02:39.3]} 11. Nc4 {[%clk
0:01:38.8]} 11... Be6 {[%clk 0:02:35.6]} 12. Bg5 {[%clk 0:01:40.2]} 12... h6
{[%clk 0:02:32.8]} 13. Bh4 {[%clk 0:01:41.1]} 13... g5 {[%clk 0:02:24.1]} 14.
Bg3 {[%clk 0:01:42.1]} 14... Nh5 {[%clk 0:02:25.7]} 15. Rad1 {[%clk 0:01:19.8]}
15... Nxg3 {[%clk 0:02:21.9]} 16. hxg3 {[%clk 0:01:21.7]} 16... bxc3 {[%clk
0:02:13]} 17. bxc3 {[%clk 0:01:21.3]} 17... Bxc4 {[%clk 0:02:14.1]} 18. dxc4
{[%clk 0:01:22.4]} 18... Qa5 {[%clk 0:02:14.3]} 19. e5 {[%clk 0:01:23.4]} 19...
Nxe5 {[%clk 0:02:08.7]} 20. Nxe5 {[%clk 0:01:24.6]} 20... Bxe5 {[%clk
0:02:10.6]} 21. Bg4 {[%clk 0:01:21.4]} 21... e6 {[%clk 0:01:53.3]} 22. Bxe6
{[%clk 0:01:16.2]} 22... Qxc3 {[%clk 0:01:35.8]} 23. Qg6+ {[%clk 0:01:14.5]}
23... Bg7 {[%clk 0:01:35.4]} 24. Bd5 {[%clk 0:01:11.4]} 24... Qf6 {[%clk
0:01:33]} 25. Qd3 {[%clk 0:01:12.5]} 25... Rfe8 {[%clk 0:01:32]} 26. Rxe8+
{[%clk 0:01:08.6]} 26... Rxe8 {[%clk 0:01:33.9]} 27. Rb1 {[%clk 0:01:09.8]}
27... Qc3 {[%clk 0:01:20.8]} 28. Qf5 {[%clk 0:01:04.7]} 28... Re1+ {[%clk
0:01:09.4]} 29. Kh2 {[%clk 0:01:00.9]} 29... Re7 {[%clk 0:01:00.4]} 30. Rb8+
{[%clk 0:00:53.5]} 30... Bf8 {[%clk 0:01:01.7]} 31. Qg6+ {[%clk 0:00:52.8]}
31... Qg7 {[%clk 0:01:03.1]} 32. Qxd6 {[%clk 0:00:48.9]} 32... h5 {[%clk
0:00:54.7]} 33. Qxe7 {[%clk 0:00:47.7]} 33... h4 {[%clk 0:00:51.4]} 34. gxh4
{[%clk 0:00:44.9]} 34... gxh4 {[%clk 0:00:50.9]} 35. Qxf7+ {[%clk 0:00:45.5]}
35... Qxf7 {[%clk 0:00:51.7]} 36. Bxf7+ {[%clk 0:00:47.4]} 36... Kxf7 {[%clk
0:00:53.6]} 37. Rb7+ {[%clk 0:00:49.2]} 37... Ke6 {[%clk 0:00:53.6]} 38. Rxa7
{[%clk 0:00:51.1]} 38... Ke5 {[%clk 0:00:54.3]} 39. Rd7 {[%clk 0:00:51.7]} 1-0

[Event "*** Titled Tuesday Blitz"]
[Site "Chess.com"]
[Date "2018.01.02"]
[Round "5"]
[White "SquashMaestro"]
[Black "TijanaBlagojevic"]
[Result "1-0"]
[WhiteElo "2253"]
[BlackElo "2360"]
[TimeControl "180+2"]
[EndTime "14:06:31 PST"]
[Termination "SquashMaestro won by resignation"]

1. b3 {[%clk 0:01:04.6]} 1... d5 {[%clk 0:02:59]} 2. Bb2 {[%clk 0:01:05.7]} 2...
c6 {[%clk 0:03:00.5]} 3. e3 {[%clk 0:01:07.2]} 3... Nf6 {[%clk 0:03:00.6]} 4. f4
{[%clk 0:01:08.7]} 4... g6 {[%clk 0:02:59.7]} 5. Nf3 {[%clk 0:01:10.3]} 5... Bg7
{[%clk 0:03:01.2]} 6. d3 {[%clk 0:01:11.3]} 6... O-O {[%clk 0:03:02.8]} 7. Nbd2
{[%clk 0:01:12.7]} 7... Nbd7 {[%clk 0:03:04.4]} 8. Qe2 {[%clk 0:01:13.6]} 8...
a5 {[%clk 0:03:06]} 9. a4 {[%clk 0:01:13.9]} 9... Re8 {[%clk 0:03:06.4]} 10. h3
{[%clk 0:01:15.3]} 10... Qc7 {[%clk 0:03:06.6]} 11. g4 {[%clk 0:01:16.3]} 11...
b5 {[%clk 0:03:02.8]} 12. axb5 {[%clk 0:01:15.1]} 12... cxb5 {[%clk 0:03:03.7]}
13. Rc1 {[%clk 0:01:13.7]} 13... a4 {[%clk 0:03:04.1]} 14. Bg2 {[%clk
0:01:05.3]} 14... a3 {[%clk 0:03:02.6]} 15. Ba1 {[%clk 0:01:05.7]} 15... a2
{[%clk 0:03:01.5]} 16. O-O {[%clk 0:01:06.3]} 16... Bb7 {[%clk 0:02:57.2]} 17.
Nd4 {[%clk 0:01:07.5]} 17... b4 {[%clk 0:02:52.3]} 18. e4 {[%clk 0:01:05.8]}
18... dxe4 {[%clk 0:02:52.2]} 19. dxe4 {[%clk 0:01:06.6]} 19... e5 {[%clk
0:02:52.8]} 20. Nb5 {[%clk 0:01:06.3]} 20... Qb6+ {[%clk 0:02:53]} 21. Kh1
{[%clk 0:01:04.4]} 21... Ba6 {[%clk 0:02:54.2]} 22. Nc4 {[%clk 0:00:52.6]} 22...
Qxb5 {[%clk 0:02:53.7]} 23. g5 {[%clk 0:00:48.4]} 23... Nh5 {[%clk 0:02:53.2]}
24. Qg4 {[%clk 0:00:48.4]} 24... Nxf4 {[%clk 0:02:39.1]} 25. Nd6 {[%clk
0:00:46.1]} 25... Qe2 {[%clk 0:02:34.1]} 26. Bf3 {[%clk 0:00:31.9]} 26... Qe3
{[%clk 0:02:05.8]} 27. Qxd7 {[%clk 0:00:28.6]} 27... Bxf1 {[%clk 0:02:02.2]} 28.
Rxf1 {[%clk 0:00:27.3]} 28... Rf8 {[%clk 0:02:00]} 29. Nc4 {[%clk 0:00:24.7]}
29... Qc5 {[%clk 0:01:57.2]} 30. Bg4 {[%clk 0:00:23.4]} 30... Rad8 {[%clk
0:01:57.5]} 31. Qb7 {[%clk 0:00:22.9]} 31... h5 {[%clk 0:01:50.3]} 32. gxh6
{[%clk 0:00:22.9]} 32... Bf6 {[%clk 0:01:47]} 33. Rxf4 {[%clk 0:00:22.3]} 33...
exf4 {[%clk 0:01:43.4]} 34. Bxf6 {[%clk 0:00:23]} 34... Qf2 {[%clk 0:01:42.8]}
35. Qb6 {[%clk 0:00:19.5]} 35... Ra8 {[%clk 0:01:31.6]} 36. Qxf2 {[%clk
0:00:19.9]} 36... Ra6 {[%clk 0:01:29.6]} 37. Ba1 {[%clk 0:00:20.4]} 37... Rd8
{[%clk 0:01:30.2]} 38. Qxf4 {[%clk 0:00:20.9]} 38... Rc6 {[%clk 0:01:26.8]} 39.
h7+ {[%clk 0:00:21.4]} 39... Kxh7 {[%clk 0:01:27.5]} 40. Qxf7+ {[%clk
0:00:22.3]} 40... Kh6 {[%clk 0:01:28.9]} 41. Bf6 {[%clk 0:00:21.3]} 41... Rxf6
{[%clk 0:01:28.4]} 42. Qxf6 {[%clk 0:00:22.4]} 1-0

[Event "*** Titled Tuesday Blitz"]
[Site "Chess.com"]
[Date "2018.01.02"]
[Round "5"]
[White "Msb2"]
[Black "kleinebeer98"]
[Result "1-0"]
[WhiteElo "2744"]
[BlackElo "2524"]
[TimeControl "180+2"]
[EndTime "14:06:41 PST"]
[Termination "Msb2 won on time"]

1. d4 {[%clk 0:03:01.9]} 1... Nf6 {[%clk 0:02:59.6]} 2. c4 {[%clk 0:03:02.8]}
2... e6 {[%clk 0:03:00.8]} 3. g3 {[%clk 0:03:04]} 3... d5 {[%clk 0:02:55.4]} 4.
Bg2 {[%clk 0:03:04.2]} 4... dxc4 {[%clk 0:02:55.5]} 5. Nf3 {[%clk 0:03:05.2]}
5... Bb4+ {[%clk 0:02:52.7]} 6. Bd2 {[%clk 0:03:05.4]} 6... a5 {[%clk
0:02:53.2]} 7. a3 {[%clk 0:03:05.9]} 7... Bxd2+ {[%clk 0:02:51.1]} 8. Nbxd2
{[%clk 0:03:07.8]} 8... b5 {[%clk 0:02:45.7]} 9. b3 {[%clk 0:03:08.2]} 9... cxb3
{[%clk 0:02:31.9]} 10. Qxb3 {[%clk 0:03:10.1]} 10... O-O {[%clk 0:02:18.8]} 11.
O-O {[%clk 0:03:10.9]} 11... c6 {[%clk 0:02:09.6]} 12. Rfc1 {[%clk 0:03:11.4]}
12... a4 {[%clk 0:01:59.1]} 13. Qb2 {[%clk 0:03:12.2]} 13... Bb7 {[%clk
0:01:55.9]} 14. Ne1 {[%clk 0:03:11.6]} 14... Nbd7 {[%clk 0:01:41.4]} 15. Nd3
{[%clk 0:03:12.5]} 15... Rc8 {[%clk 0:01:29.4]} 16. Rc2 {[%clk 0:03:08]} 16...
Nb6 {[%clk 0:01:13.8]} 17. Rac1 {[%clk 0:03:06.7]} 17... Nfd5 {[%clk 0:01:10.4]}
18. e3 {[%clk 0:03:00]} 18... Ba8 {[%clk 0:01:03.1]} 19. h4 {[%clk 0:02:51.2]}
19... Qe7 {[%clk 0:00:57.8]} 20. Rc5 {[%clk 0:02:39]} 20... Nd7 {[%clk
0:00:52.1]} 21. R5c2 {[%clk 0:02:36.8]} 21... N7b6 {[%clk 0:00:53.2]} 22. Nc5
{[%clk 0:02:38.1]} 22... Nf6 {[%clk 0:00:41.4]} 23. Nce4 {[%clk 0:02:34.2]}
23... Nxe4 {[%clk 0:00:36.7]} 24. Bxe4 {[%clk 0:02:36.1]} 24... Qd6 {[%clk
0:00:18.6]} 25. Bg2 {[%clk 0:02:28.8]} 25... Rc7 {[%clk 0:00:14.1]} 26. Rc5
{[%clk 0:02:28.9]} 26... Nd7 {[%clk 0:00:14.4]} 27. Ne4 {[%clk 0:02:26]} 27...
Qe7 {[%clk 0:00:13.6]} 28. Rxb5 {[%clk 0:02:27.2]} 28... cxb5 {[%clk 0:00:09.3]}
29. Rxc7 {[%clk 0:02:29.1]} 29... Qd8 {[%clk 0:00:07]} 30. Qc2 {[%clk
0:01:55.5]} 30... Nb6 {[%clk 0:00:04.8]} 31. Ng5 {[%clk 0:01:51.7]} 31... g6
{[%clk 0:00:05.9]} 32. Bxa8 {[%clk 0:01:33.9]} 32... Qxa8 {[%clk 0:00:07.8]} 33.
h5 {[%clk 0:01:07.9]} 33... Qd5 {[%clk 0:00:02.3]} 34. Nxh7 {[%clk 0:01:08.6]}
34... Kxh7 {[%clk 0:00:03]} 35. Qxg6+ {[%clk 0:01:09.8]} 35... Kh8 {[%clk
0:00:03.8]} 36. Qf6+ {[%clk 0:01:11.7]} 36... Kg8 {[%clk 0:00:05.1]} 37. h6
{[%clk 0:01:13.1]} 1-0

[Event "*** Titled Tuesday Blitz"]
[Site "Chess.com"]
[Date "2018.01.02"]
[Round "5"]
[White "ckgchess"]
[Black "mokerslag"]
[Result "0-1"]
[WhiteElo "2474"]
[BlackElo "2369"]
[TimeControl "180+2"]
[EndTime "14:06:45 PST"]
[Termination "mokerslag won by checkmate"]

1. e4 {[%clk 0:03:01.2]} 1... c5 {[%clk 0:03:00.6]} 2. Nf3 {[%clk 0:03:02.1]}
2... e6 {[%clk 0:03:01.9]} 3. d4 {[%clk 0:03:02.8]} 3... cxd4 {[%clk 0:03:03.8]}
4. Nxd4 {[%clk 0:03:04.7]} 4... Nf6 {[%clk 0:03:05.4]} 5. Nc3 {[%clk 0:03:04.7]}
5... Nc6 {[%clk 0:03:07]} 6. Be3 {[%clk 0:03:03]} 6... Bb4 {[%clk 0:03:07.4]} 7.
Nb5 {[%clk 0:03:02]} 7... Nxe4 {[%clk 0:03:01.1]} 8. Qd3 {[%clk 0:03:00.3]} 8...
d5 {[%clk 0:02:52.6]} 9. a3 {[%clk 0:02:47.3]} 9... Nxc3 {[%clk 0:02:44]} 10.
Nxc3 {[%clk 0:02:27.6]} 10... Be7 {[%clk 0:02:43.7]} 11. O-O-O {[%clk
0:02:12.1]} 11... Qa5 {[%clk 0:02:34.6]} 12. Kb1 {[%clk 0:02:04]} 12... Bf6
{[%clk 0:02:34.5]} 13. Nb5 {[%clk 0:02:02.7]} 13... O-O {[%clk 0:02:32.8]} 14.
Bc5 {[%clk 0:02:03.6]} 14... Rd8 {[%clk 0:02:18.3]} 15. Be3 {[%clk 0:01:07.7]}
15... a6 {[%clk 0:01:58.5]} 16. Nd4 {[%clk 0:01:08.1]} 16... Ne5 {[%clk
0:01:49]} 17. Qb3 {[%clk 0:01:05.3]} 17... Qc7 {[%clk 0:01:44.8]} 18. Nf3 {[%clk
0:01:01.1]} 18... Nd7 {[%clk 0:01:28.6]} 19. g4 {[%clk 0:00:52.9]} 19... b5
{[%clk 0:01:28.4]} 20. g5 {[%clk 0:00:53.6]} 20... Be7 {[%clk 0:01:29.1]} 21. h4
{[%clk 0:00:50.8]} 21... Bb7 {[%clk 0:01:28.7]} 22. h5 {[%clk 0:00:44.5]} 22...
Nc5 {[%clk 0:00:56.6]} 23. Qc3 {[%clk 0:00:40]} 23... Rac8 {[%clk 0:00:55]} 24.
h6 {[%clk 0:00:33.8]} 24... Bf8 {[%clk 0:00:55.2]} 25. hxg7 {[%clk 0:00:31.3]}
25... Bxg7 {[%clk 0:00:57.1]} 26. Bd4 {[%clk 0:00:31.5]} 26... Ne4 {[%clk
0:00:46.4]} 27. Qb3 {[%clk 0:00:19.7]} 27... e5 {[%clk 0:00:45.1]} 28. Ba7
{[%clk 0:00:13.8]} 28... Ba8 {[%clk 0:00:38.8]} 29. Be3 {[%clk 0:00:14.5]} 29...
d4 {[%clk 0:00:37.2]} 30. Bc1 {[%clk 0:00:15.7]} 30... Bd5 {[%clk 0:00:37.3]}
31. Qd3 {[%clk 0:00:16.3]} 31... Qc4 {[%clk 0:00:33.1]} 32. Rh4 {[%clk
0:00:15.7]} 32... Qa2# {[%clk 0:00:33.7]} 0-1

[Event "*** Titled Tuesday Blitz"]
[Site "Chess.com"]
[Date "2018.01.02"]
[Round "5"]
[White "gkchesstiger"]
[Black "Boryboy"]
[Result "1-0"]
[WhiteElo "2628"]
[BlackElo "2432"]
[TimeControl "180+2"]
[EndTime "14:06:54 PST"]
[Termination "gkchesstiger won by resignation"]

1. d4 {[%clk 0:03:01.9]} 1... e6 {[%clk 0:03:01.9]} 2. Bf4 {[%clk 0:03:00.1]}
2... b6 {[%clk 0:02:58.4]} 3. e3 {[%clk 0:03:01.1]} 3... Bb7 {[%clk 0:03:00.3]}
4. Nd2 {[%clk 0:03:00.8]} 4... Nf6 {[%clk 0:02:51.4]} 5. h3 {[%clk 0:03:00.3]}
5... g6 {[%clk 0:02:52.2]} 6. Ngf3 {[%clk 0:03:01]} 6... Bg7 {[%clk 0:02:53.7]}
7. a4 {[%clk 0:03:02.2]} 7... a6 {[%clk 0:02:49.6]} 8. c3 {[%clk 0:03:02.3]}
8... O-O {[%clk 0:02:50.3]} 9. Bd3 {[%clk 0:03:02]} 9... d6 {[%clk 0:02:49.4]}
10. O-O {[%clk 0:02:50.5]} 10... Qe7 {[%clk 0:02:50.3]} 11. e4 {[%clk
0:02:50.3]} 11... Nbd7 {[%clk 0:02:49.9]} 12. Re1 {[%clk 0:02:51]} 12... e5
{[%clk 0:02:47.2]} 13. Bg5 {[%clk 0:02:51.5]} 13... Rfe8 {[%clk 0:02:42.2]} 14.
b4 {[%clk 0:02:47.2]} 14... Qf8 {[%clk 0:02:39.5]} 15. b5 {[%clk 0:02:45.1]}
15... axb5 {[%clk 0:02:17.6]} 16. Bxb5 {[%clk 0:02:42.7]} 16... Red8 {[%clk
0:01:38.8]} 17. Qc2 {[%clk 0:02:38.3]} 17... h6 {[%clk 0:01:35.2]} 18. Bh4
{[%clk 0:02:35.3]} 18... c6 {[%clk 0:01:22.8]} 19. Bf1 {[%clk 0:02:33.5]} 19...
Re8 {[%clk 0:01:23.6]} 20. Qb3 {[%clk 0:02:22.4]} 20... exd4 {[%clk 0:01:20.5]}
21. cxd4 {[%clk 0:02:22.7]} 21... c5 {[%clk 0:01:21.9]} 22. e5 {[%clk
0:02:20.1]} 22... dxe5 {[%clk 0:01:19.8]} 23. dxe5 {[%clk 0:02:08.4]} 23... Nd5
{[%clk 0:01:18.1]} 24. Bb5 {[%clk 0:02:07.8]} 24... Nxe5 {[%clk 0:01:15.7]} 25.
Bxe8 {[%clk 0:02:07.3]} 25... Nxf3+ {[%clk 0:01:16.7]} 26. Nxf3 {[%clk
0:02:03.7]} 26... Bxa1 {[%clk 0:01:17.4]} 27. Bb5 {[%clk 0:01:35.8]} 27... Bf6
{[%clk 0:00:49.9]} 28. Bg3 {[%clk 0:01:35.2]} 28... Rd8 {[%clk 0:00:44.4]} 29.
Bc4 {[%clk 0:01:34.8]} 29... Kg7 {[%clk 0:00:41.8]} 30. h4 {[%clk 0:01:25.6]}
30... Nb4 {[%clk 0:00:42.8]} 31. Ne5 {[%clk 0:01:24.8]} 31... Re8 {[%clk
0:00:42.8]} 32. h5 {[%clk 0:01:14.4]} 32... gxh5 {[%clk 0:00:40.2]} 33. Re3
{[%clk 0:00:52.7]} 33... h4 {[%clk 0:00:40]} 34. Bf4 {[%clk 0:00:52.5]} 34...
Qd6 {[%clk 0:00:34]} 35. Bxh6+ {[%clk 0:00:46.9]} 35... Kh7 {[%clk 0:00:35.4]}
36. Qb1+ {[%clk 0:00:46.6]} 36... Nd3 {[%clk 0:00:18.2]} 37. Bxd3+ {[%clk
0:00:46.3]} 37... Kg8 {[%clk 0:00:15.7]} 1-0